fUST/lending_fUST_20260128
["ID","MTS","AMOUNT","RATE_DAILY","PERIOD"]
[403788991,1769544638375,-500.0,0.00013273,2]
[403788992,1769544638385,-500.0,0.00013273,2]
[403788993,1769544638395,-500.0,0.00013273,2]
[403788994,1769544638404,-500.0,0.00013273,2]
[403788995,1769544638414,-500.0,0.00013273,2]
[403788996,1769544638423,-500.0,0.00013273,2]
[403788997,1769544638432,-295.75719017,0.00013273,2]
[403788998,1769544638442,-500.0,0.00013273,2]
[403788999,1769544638451,-299.98255464,0.00013273,2]
[403789000,1769544638460,-500.0,0.00013273,2]
[403789001,1769544638469,-500.0,0.00013273,2]
[403789002,1769544638479,-500.0,0.00013273,2]
[403789003,1769544638488,-93792.85728532,0.00013334,2]
[403789066,1769544640159,-44256.28400749,0.00013334,2]
[403789068,1769544640171,-919.35239916,0.00013334,2]
[403789218,1769544644476,-3518.79288172,0.00013334,2]
[403789219,1769544644488,-6097.03692679,0.00013334,2]
[403789229,1769544646069,-28651.26491838,0.00013334,2]
[403789230,1769544646079,-300.0,0.00013673,2]
[403789231,1769544646089,-155.64982553,0.0001369,2]
[403789232,1769544646098,-151.0,0.0001369,2]
[403789233,1769544646107,-151.0,0.0001369,2]
[403789234,1769544646117,-151.0,0.0001369,2]
[403789235,1769544646126,-234.01413472,0.00013698,2]
[403789236,1769544646135,-500.0,0.00013698,2]
[403789237,1769544646146,-500.0,0.00013698,2]
[403789238,1769544646155,-500.0,0.00013698,2]
[403789239,1769544646164,-500.0,0.00013698,2]
[403789240,1769544646173,-500.0,0.00013698,2]
[403789241,1769544646182,-2370.605448,0.00013699,2]
[403789242,1769544646191,-500.0,0.00013699,2]
[403789243,1769544646201,-614.12659995,0.00013699,2]
[403789244,1769544646210,-500.0,0.00013699,2]
[403789245,1769544646219,-500.0,0.00013699,2]
[403789246,1769544646229,-500.0,0.00013699,2]
[403789247,1769544646238,-436.01223429,0.00013699,2]
[403789248,1769544646248,-500.0,0.00013699,2]
[403789249,1769544646257,-500.0,0.00013699,2]
[403789250,1769544646267,-500.0,0.00013699,2]
[403789251,1769544646276,-227.51842288,0.00013699,2]
[403789252,1769544646287,-500.0,0.00013699,2]
[403789253,1769544646296,-500.0,0.00013699,2]
[403789254,1769544646306,-500.0,0.00013699,2]
[403789255,1769544646315,-500.0,0.00013699,2]
[403789256,1769544646325,-500.0,0.00013699,2]
[403789257,1769544646334,-500.0,0.00013699,2]
[403789258,1769544646343,-500.0,0.00013699,2]
[403789259,1769544646352,-500.0,0.00013699,2]
[403789260,1769544646361,-500.0,0.00013699,2]
[403789261,1769544646371,-500.0,0.00013699,2]
[403789262,1769544646380,-500.0,0.00013699,2]
[403789263,1769544646390,-500.0,0.00013699,2]
[403789264,1769544646400,-500.0,0.00013699,2]
[403789265,1769544646410,-500.0,0.00013699,2]
[403789266,1769544646419,-500.0,0.00013699,2]
[403789267,1769544646429,-500.0,0.00013699,2]
[403789268,1769544646439,-500.0,0.00013699,2]
[403789269,1769544646448,-500.0,0.00013699,2]
[403789270,1769544646458,-500.0,0.00013699,2]
[403789271,1769544646467,-500.0,0.00013699,2]
[403789272,1769544646477,-500.0,0.00013699,2]
[403789273,1769544646486,-500.0,0.00013699,2]
[403789274,1769544646496,-500.0,0.00013699,2]
[403789275,1769544646506,-445.98241214,0.00013699,2]
[403789276,1769544646515,-243.71237519,0.00013699,2]
[403789277,1769544646524,-500.0,0.00013699,2]
[403789278,1769544646532,-500.0,0.00013699,2]
[403789279,1769544646543,-504.3433977,0.00013699,2]
[403789280,1769544646552,-500.0,0.00013699,2]
[403789281,1769544646561,-500.0,0.00013699,2]
[403789282,1769544646570,-500.0,0.00013699,2]
[403789283,1769544646579,-500.0,0.00013699,2]
[403789284,1769544646589,-500.0,0.00013699,2]
[403789285,1769544646598,-500.0,0.00013699,2]
[403789286,1769544646607,-500.0,0.00013699,2]
[403789287,1769544646617,-500.0,0.00013699,2]
[403789288,1769544646626,-500.0,0.00013699,2]
[403789289,1769544646635,-500.0,0.00013699,2]
[403789290,1769544646644,-500.0,0.00013699,2]
[403789291,1769544646653,-500.0,0.00013699,2]
[403789292,1769544646662,-500.0,0.00013699,2]
[403789293,1769544646671,-500.0,0.00013699,2]
[403789294,1769544646681,-500.0,0.00013699,2]
[403789295,1769544646690,-500.0,0.00013699,2]
[403789296,1769544646699,-500.0,0.00013699,2]
[403789297,1769544646708,-500.32406849,0.00013699,2]
[403789298,1769544646718,-500.0,0.00013699,2]
[403789299,1769544646727,-500.0,0.00013699,2]
[403789300,1769544646736,-459.28481038,0.00013699,2]
[403789301,1769544646746,-500.0,0.00013699,2]
[403789302,1769544646755,-500.0,0.00013699,2]
[403789303,1769544646768,-500.0,0.00013699,2]
[403789304,1769544646778,-500.0,0.00013699,2]
[403789305,1769544646790,-500.0,0.00013699,2]
[403789306,1769544646800,-500.0,0.00013699,2]
[403789307,1769544646810,-500.0,0.00013699,2]
[403789308,1769544646819,-500.0,0.00013699,2]
[403789309,1769544646828,-543.71404472,0.00013699,2]
[403789310,1769544646837,-500.0,0.00013699,2]
[403789311,1769544646846,-225.98244329,0.00013699,2]
[403789312,1769544646855,-500.0,0.00013699,2]
[403789313,1769544646865,-500.0,0.00013699,2]
[403789314,1769544646874,-500.0,0.00013699,2]
[403789315,1769544646883,-500.0,0.00013699,2]
[403789316,1769544646896,-500.0,0.00013699,2]
[403789317,1769544646905,-500.0,0.00013699,2]
[403789318,1769544646915,-500.0,0.00013699,2]
[403789319,1769544646924,-500.0,0.00013699,2]
[403789320,1769544646935,-500.0,0.00013699,2]
[403789321,1769544646944,-500.0,0.00013699,2]
[403789322,1769544646953,-605.01551444,0.00013699,2]
[403789323,1769544646963,-500.0,0.0001382,2]
[403789324,1769544646972,-338.45854352,0.00013821,2]
[403789325,1769544647172,-1000.0,0.00013821,2]
[403789326,1769544647182,-1000.0,0.00013821,2]
[403789327,1769544647191,-1000.0,0.00013821,2]
[403789328,1769544647200,-1000.0,0.00013821,2]
[403789329,1769544647209,-1000.0,0.00013821,2]
[403789330,1769544647218,-1000.0,0.00013821,2]
[403789331,1769544647228,-1000.0,0.00013821,2]
[403789332,1769544647237,-1000.0,0.00013821,2]
[403789333,1769544647246,-1000.0,0.00013821,2]
[403789334,1769544647255,-893.82090836,0.00013821,2]
[403789335,1769544647264,-1000.0,0.00013821,2]
[403789336,1769544647274,-445.401138,0.00014247,2]
[403789337,1769544647285,-658.68078088,0.00014247,2]
[403789338,1769544647294,-382.4985799,0.00014516,2]
[403789339,1769544647303,-584.0,0.00014525,2]
[403789340,1769544647312,-229.28618633,0.00014947,2]
[403789341,1769544647321,-9556.3342029,0.0001522,2]
[403789342,1769544647330,-500.0,0.00015342,2]
[403789343,1769544647339,-500.0,0.00015342,2]
[403789344,1769544647349,-213.08918261,0.00015342,2]
[403789345,1769544647358,-500.0,0.00015342,2]
[403789346,1769544647367,-159.62665952,0.00015867,2]
[403789347,1769544647379,-162.23044371,0.00015867,2]
[403789348,1769544647389,-440.8458209,0.00016516,2]
[403789349,1769544647398,-500.0,0.00018017,2]
[403789350,1769544647409,-500.0,0.00018148,2]
[403789351,1769544647418,-1041.66666667,0.00018164,2]
[403789352,1769544647428,-160.0,0.00018164,2]
[403789353,1769544647437,-9556.3342029,0.00018486,2]
[403789354,1769544647447,-499.1930619,0.00018516,2]
[403789355,1769544647457,-190.842462,0.00018653,2]
[403789356,1769544647467,-303.10001603,0.000189,2]
[403789357,1769544647478,-500.0,0.00019088,2]
[403789358,1769544647488,-500.0,0.00019088,2]
[403789359,1769544647499,-303.10001603,0.00019089,2]
[403789360,1769544647508,-303.10001603,0.00019278,2]
[403789361,1769544647518,-303.10001603,0.00019467,2]
[403789362,1769544647527,-303.10001603,0.00019656,2]
[403789363,1769544647536,-500.0,0.00019726,2]
[403789364,1769544647545,-150.0,0.00019726,2]
[403789365,1769544647558,-150.0,0.00019726,2]
[403789366,1769544647577,-150.0,0.00019726,2]
[403789367,1769544647594,-500.0,0.00019726,2]
[403789368,1769544647603,-2225.1960788,0.00019769,2]
[403789369,1769544647612,-576.12,0.0001977,2]
[403789370,1769544647621,-454.65002405,0.00019845,4]
[403789371,1769544647630,-500.0,0.00019861,2]
[403789372,1769544647640,-500.0,0.00019862,2]
[403789373,1769544647650,-500.0,0.00019863,2]
[403789374,1769544647660,-174.46028976,0.00019863,2]
[403789375,1769544647669,-150.0,0.00019863,2]
[403789376,1769544647679,-250.0,0.00019863,2]
[403789377,1769544647689,-577.29,0.00019863,2]
[403789378,1769544647699,-500.0,0.00019867,2]
[403789379,1769544647708,-500.0,0.00019867,2]
[403789380,1769544647718,-500.0,0.00019867,2]
[403789381,1769544647727,-500.0,0.00019867,2]
[403789382,1769544647736,-500.0,0.00019868,2]
[403789383,1769544647746,-500.0,0.00019868,2]
[403789384,1769544647756,-500.0,0.00019868,2]
[403789385,1769544647770,-23202.5481691,0.00019869,2]
[403789386,1769544647789,-5177.1882888,0.00019869,2]
[403789387,1769544647810,-1065.7873404,0.00019869,2]
[403789388,1769544647822,-1470.4572459,0.00019869,2]
[403789389,1769544647842,-500.0,0.00019899,2]
[403789390,1769544647863,-500.0,0.00019899,2]
[403789391,1769544647884,-504.02452176,0.00019899,2]
[403789392,1769544647904,-500.0,0.00019971,2]
[403789393,1769544647926,-500.0,0.00019971,2]
[403789394,1769544647947,-500.0,0.00019971,2]
[403789395,1769544647969,-500.0,0.00019971,2]
[403789396,1769544647992,-500.0,0.00019971,2]
[403789397,1769544648010,-413.18,0.0001999,3]
[403789398,1769544648020,-206.59,0.0001999,3]
[403789399,1769544648032,-619.79,0.0001999,3]
[403789400,1769544648044,-547.98655577,0.00019999,2]
[403789401,1769544648057,-500.0,0.00019999,2]
[403789402,1769544648069,-261.16691937,0.00019999,2]
[403789403,1769544648081,-500.0,0.00019999,2]
[403789404,1769544648092,-500.0,0.00019999,2]
[403789405,1769544648102,-379.43,0.00019999,2]
[403789406,1769544648112,-190.85969556,0.0002,2]
[403789407,1769544648123,-190.17419619,0.0002,2]
[403789408,1769544648134,-336068.33119771,0.0002,2]
[403789409,1769544648147,-4448.16968247,0.0002,2]
[403789410,1769544662545,273.36531787,0.00034913,120]
[403789411,1769544711474,500.0,0.00034913,120]
[403789412,1769544711714,601.98,0.00034913,120]
[403789413,1769544722972,500.0,0.00034913,120]
[403789414,1769544732007,500.0,0.00034913,120]
[403791150,1769545033344,10000.9274079,0.00034904,120]
[403797041,1769545332928,177.08895197,0.00034892,120]
[403804677,1769545831912,-600.0,0.00012294,2]
[403804678,1769545831922,-594.0,0.00012294,2]
[403804679,1769545831931,-299.01534792,0.00012308,2]
[403804680,1769545831940,-221.25507741,0.00012408,2]
[403804681,1769545831949,-4587.9876164,0.00012652,2]
[403804682,1769545831958,-300.0,0.00012748,2]
[403804683,1769545831967,-157.0,0.00012748,2]
[403804684,1769545831976,-300.0,0.00012748,2]
[403804685,1769545831985,-1200.0,0.00012748,2]
[403804686,1769545831995,-300.0,0.00012748,2]
[403804687,1769545832004,-500.0,0.00012749,2]
[403804688,1769545832014,-500.0,0.00012749,2]
[403804689,1769545832023,-500.0,0.00012749,2]
[403804690,1769545832033,-500.0,0.00012749,2]
[403804691,1769545832042,-208.84418304,0.00012749,2]
[403804692,1769545832054,-500.0,0.00012749,2]
[403804693,1769545832064,-500.0,0.00012749,2]
[403804694,1769545832073,-500.0,0.00012749,2]
[403804695,1769545832082,-500.0,0.00012749,2]
[403804696,1769545832091,-500.0,0.00012749,2]
[403804697,1769545832100,-500.0,0.00012749,2]
[403804698,1769545832110,-500.0,0.00012749,2]
[403804699,1769545832119,-208.65107705,0.00012749,2]
[403804700,1769545832128,-297.10654677,0.00012749,2]
[403804701,1769545832137,-46.87332288,0.00012749,2]
[403804702,1769545832148,-453.12667712,0.00012749,2]
[403804703,1769545832157,-500.0,0.00012749,2]
[403804704,1769545832167,-500.0,0.00012749,2]
[403804705,1769545832176,-500.0,0.00012749,2]
[403804707,1769545832185,-500.0,0.00012749,2]
[403804708,1769545832195,-500.0,0.00012749,2]
[403804709,1769545832205,-500.0,0.00012749,2]
[403804710,1769545832214,-449.20810954,0.00012749,2]
[403804711,1769545832224,-500.0,0.00012749,2]
[403804712,1769545832233,-500.0,0.00012749,2]
[403804713,1769545832242,-500.0,0.00012749,2]
[403804714,1769545832252,-500.0,0.00012749,2]
[403804716,1769545832262,-500.0,0.00012749,2]
[403804717,1769545832272,-500.0,0.00012749,2]
[403804718,1769545832282,-500.0,0.00012749,2]
[403804719,1769545832296,-500.0,0.00012749,2]
[403804720,1769545832306,-500.0,0.00012749,2]
[403804721,1769545832316,-500.0,0.00012749,2]
[403804722,1769545832326,-500.0,0.00012749,2]
[403804724,1769545832335,-349.42212768,0.00012749,2]
[403804725,1769545832345,-500.0,0.00012749,2]
[403804726,1769545832355,-300.0,0.00012756,2]
[403804727,1769545832366,-300.0,0.00012756,2]
[403804728,1769545832375,-300.0,0.00012756,2]
[403804729,1769545832384,-300.0,0.00012756,2]
[403804730,1769545832393,-300.0,0.00012756,2]
[403804732,1769545832402,-300.0,0.00012756,2]
[403804733,1769545832411,-300.0,0.00012756,2]
[403804734,1769545832421,-300.0,0.00012756,2]
[403804735,1769545832431,-300.0,0.00012756,2]
[403804736,1769545832440,-49.43440526,0.00012756,2]
[403804817,1769545837986,-2220.92362637,0.00012749,2]
[403804818,1769545837997,-1416.06373424,0.00012749,2]
[403804821,1769545838152,-28978.22560731,0.00012749,2]
[403804822,1769545838162,-250.56559474,0.00012756,2]
[403804824,1769545838172,-300.0,0.00012756,2]
[403804826,1769545838182,-300.0,0.00012756,2]
[403804828,1769545838191,-300.0,0.00012756,2]
[403804829,1769545838200,-300.0,0.00012756,2]
[403804830,1769545838210,-300.0,0.00012756,2]
[403804831,1769545838219,-207.42817209,0.00012899,2]
[403804832,1769545838228,-500.0,0.00012899,2]
[403804833,1769545838238,-226.39425339,0.00012899,2]
[403804834,1769545838247,-5972.70887683,0.000129,2]
[403804836,1769545838257,-522.6486575,0.00013273,2]
[403804837,1769545838266,-500.0,0.00013273,2]
[403804838,1769545838275,-281.81534647,0.00013273,2]
[403804839,1769545838286,-720.0,0.00013524,2]
[403804840,1769545838299,-500.0,0.00013698,2]
[403804841,1769545838308,-221.99898215,0.00013698,2]
[403804842,1769545838317,-1000.0,0.00013699,2]
[403804844,1769545838328,-500.0,0.00013699,2]
[403804845,1769545838337,-500.0,0.00013699,2]
[403804846,1769545838347,-341.25679254,0.00013699,2]
[403804847,1769545838357,-590.03498975,0.00013821,2]
[403804848,1769545838367,-352.83811054,0.00014308,2]
[403804849,1769545838376,-864.0,0.00014876,2]
[403804850,1769545838386,-6801.90642309,0.000154,2]
[403804894,1769545840384,-1201.34509957,0.00013277,2]
[403804967,1769545844550,-891.7,0.00013277,2]
[403804968,1769545844563,-2309.25002831,0.00013277,2]
[403804994,1769545846237,-930.90642896,0.00013277,2]
[403804995,1769545846249,-344.15242207,0.00013277,2]
[403807535,1769546178540,3172.819485,0.0003,120]
[403807553,1769546616439,-3892.70025877,0.00011672,2]
[403807581,1769546803552,-5000.0,0.00011672,2]
[403807590,1769546816941,0.01,0.00011672,2]
[403807591,1769546816962,259.15901261,0.00011672,2]
[403807614,1769546851148,-207.89267664,0.00011809,2]
[403807615,1769546851169,-285.97827875,0.00011969,2]
[403807616,1769546851190,-590.0,0.00012029,2]
[403807617,1769546851217,-72.04483544,0.00012648,2]
[403807818,1769547038215,-399.2967364,0.00012548,2]
[403807820,1769547038227,-66.94248759,0.00012548,2]
[403807826,1769547038273,-530.05751241,0.00012548,2]
[403807828,1769547038284,-66.58976783,0.00012598,2]
[403807830,1769547038298,-220.42035451,0.00012598,2]
[403807833,1769547038310,-133.43964549,0.00013003,2]
[403807916,1769547040423,-76.95723731,0.00013003,2]
[403807919,1769547040433,-300.0,0.00013083,2]
[403807921,1769547040444,-442.0,0.00013083,2]
[403807923,1769547040454,-10000.01,0.00013084,2]
[403807925,1769547040463,-1727.6396692,0.00013104,2]
[403807927,1769547040474,-353.2359698,0.00013104,2]
[403807930,1769547040485,-505.09576967,0.00013183,2]
[403807933,1769547040495,-500.0,0.00013183,2]
[403807936,1769547040505,-261.04690308,0.00013183,2]
[403807940,1769547040516,-500.0,0.00013183,2]
[403807943,1769547040527,-500.0,0.00013183,2]
[403807946,1769547040537,-217.12363939,0.00013183,2]
[403807949,1769547040547,-918.97237484,0.00013183,2]
[403807952,1769547040556,-650.41491016,0.00013184,2]
[403808397,1769547046277,-6330.70702224,0.00013184,2]
[403808398,1769547046287,-799.3405053,0.00013184,2]
[403808399,1769547046297,-338.72225679,0.00013273,2]
[403808400,1769547046307,-500.0,0.00013273,2]
[403808401,1769547046318,-8245.15298088,0.00013277,2]
[403808402,1769547046331,-2333.51999021,0.00013277,2]
[403808403,1769547046340,-300.0,0.00013541,2]
[403808404,1769547046350,-300.0,0.00013541,2]
[403808405,1769547046360,-300.0,0.00013541,2]
[403808406,1769547046370,-300.0,0.00013541,2]
[403808407,1769547046381,-300.0,0.00013541,2]
[403808408,1769547046391,-300.0,0.00013541,2]
[403808409,1769547046401,-300.0,0.00013541,2]
[403808410,1769547046411,-300.0,0.00013541,2]
[403808411,1769547046423,-300.0,0.00013541,2]
[403808412,1769547046435,-300.0,0.00013541,2]
[403808413,1769547046445,-300.0,0.00013541,2]
[403808415,1769547046455,-300.0,0.00013541,2]
[403808418,1769547046465,-300.0,0.00013541,2]
[403808420,1769547046477,-300.0,0.00013541,2]
[403808421,1769547046488,-300.0,0.00013541,2]
[403808422,1769547046498,-243.34594935,0.00013699,2]
[403808424,1769547046511,-941.95677465,0.00013699,2]
[403808426,1769547046521,-338.67194436,0.00014598,2]
[403808427,1769547046531,-1727.6396692,0.00014767,2]
[403808429,1769547046541,-353.2359698,0.00014779,2]
[403808431,1769547046551,-15.73925549,0.00014883,2]
[403808433,1769547046563,-6069.33991248,0.00014883,2]
[403808435,1769547046575,-672.80841133,0.00014883,2]
[403808437,1769547046587,-223.2343531,0.00014883,2]
[403808439,1769547046597,-190.842462,0.00015068,2]
[403808440,1769547046608,-5140.12133206,0.000154,2]
[403808441,1769547046618,-799.3405053,0.00015539,2]
[403808442,1769547046628,-151.89470594,0.00015798,2]
[403808443,1769547046640,-238.87975478,0.00015816,2]
[403808447,1769547046849,-508.47597737,0.00015816,2]
[403808448,1769547046864,-5597.35653936,0.00015817,2]
[403808449,1769547046880,-256.2,0.00015817,2]
[403808450,1769547046892,-119.15233745,0.00015817,2]
[403808451,1769547046902,-600.0,0.00016133,2]
[403808452,1769547046911,-140.31384011,0.0001643,2]
[403808453,1769547056821,500.0,0.00029,120]
[403808454,1769547057530,500.0,0.00029,120]
[403808455,1769547058339,566.15,0.00029,120]
[403808458,1769547928175,2402.51442531,0.0003013,120]
[403808464,1769548045231,-498.61227984,0.00012442,2]
[403808465,1769548045250,-293.05734107,0.00012696,2]
[403808466,1769548045269,-185.4420739,0.00012823,2]
[403808535,1769548232256,-352.01140376,0.00012823,2]
[403808584,1769548238392,-249.98859624,0.00012823,2]
[403808586,1769548238402,-287.19619425,0.00013048,2]
[403808588,1769548238412,-500.0,0.00013273,2]
[403808590,1769548238422,-500.0,0.00013273,2]
[403808592,1769548238431,-500.0,0.00013273,2]
[403808594,1769548238443,-40.36462451,0.00013273,2]
[403808596,1769548238455,-459.63537549,0.00013273,2]
[403808598,1769548238464,-500.0,0.00013273,2]
[403808600,1769548238473,-500.0,0.00013273,2]
[403808602,1769548238482,-489.2849483,0.00013273,2]
[403808604,1769548238492,-500.0,0.00013273,2]
[403808606,1769548238502,-440.8372213,0.00013273,2]
[403808608,1769548238511,-500.0,0.00013273,2]
[403808610,1769548238521,-500.0,0.00013273,2]
[403808612,1769548238530,-500.0,0.00013273,2]
[403808614,1769548238540,-500.0,0.00013273,2]
[403808616,1769548238549,-1122.20798947,0.00013273,2]
[403808618,1769548238559,-500.0,0.00013273,2]
[403808620,1769548238568,-175.84126355,0.00013273,2]
[403808638,1769548238577,-500.0,0.00013273,2]
[403808640,1769548238748,-300.0,0.00013446,2]
[403808643,1769548238758,-300.0,0.00013446,2]
[403808645,1769548238768,-300.0,0.00013446,2]
[403808647,1769548238777,-300.0,0.00013446,2]
[403808648,1769548238787,-300.0,0.00013446,2]
[403808650,1769548238797,-300.0,0.00013446,2]
[403808653,1769548238808,-300.0,0.00013446,2]
[403808654,1769548238817,-300.0,0.00013446,2]
[403808656,1769548238827,-300.0,0.00013446,2]
[403808659,1769548238837,-300.0,0.00013446,2]
[403808661,1769548238847,-300.0,0.00013446,2]
[403808663,1769548238864,-300.0,0.00013446,2]
[403808666,1769548238877,-300.0,0.00013446,2]
[403808668,1769548238887,-300.0,0.00013446,2]
[403808670,1769548238898,-300.0,0.00013446,2]
[403808672,1769548238908,-600.0,0.00013714,2]
[403808674,1769548238919,-188.27030686,0.00013947,2]
[403808676,1769548238928,-601.28317409,0.00014166,2]
[403808678,1769548238939,-500.0,0.00014166,2]
[403808680,1769548238949,-6052.5334822,0.00014167,2]
[403808682,1769548238959,-477.10677709,0.00014201,2]
[403808685,1769548238974,-1625.53109761,0.00014201,2]
[403808686,1769548238984,-2061.049035,0.00014204,2]
[403808688,1769548238994,-2767.31655055,0.00014204,2]
[403808691,1769548239009,-723.24441565,0.00014204,2]
[403808693,1769548239019,-208.29154331,0.00014204,2]
[403808815,1769548240564,-243.97793009,0.00014204,2]
[403808817,1769548240574,-828.7413745,0.00014204,2]
[403808819,1769548240583,-176.6179849,0.00014204,2]
[403808821,1769548240592,-691.17620827,0.0001463,2]
[403808824,1769548240601,-1162.13410702,0.00014936,2]
[403808827,1769548240611,-309.07993263,0.00014936,2]
[403808830,1769548240620,-222.0,0.00015,2]
[403808833,1769548240630,-338.89150921,0.00015048,2]
[403808836,1769548240640,-720.0,0.00015085,2]
[403808839,1769548240648,-689.42176802,0.00015373,2]
[403808842,1769548240657,-1240.95918243,0.00015373,2]
[403808844,1769548240667,-332.75616838,0.00015373,2]
[403808846,1769548240676,-721.76622552,0.000154,2]
[403808849,1769548240685,-2884.17783716,0.000154,2]
[403808850,1769548240695,-203.18177463,0.000154,2]
[403808852,1769548240704,-811.91437144,0.000154,2]
[403808854,1769548240713,-828.7413745,0.00015955,2]
[403808855,1769548240722,-176.6179849,0.00015955,2]
[403808856,1769548240732,-3490.5609662,0.00016014,2]
[403808857,1769548240742,-2061.049035,0.00016039,2]
[403808858,1769548240751,-955.76137482,0.00016211,2]
[403808859,1769548240760,-3819.22245377,0.00016211,2]
[403808860,1769548240770,-318.37928437,0.00016211,2]
[403808861,1769548240779,-1272.24362035,0.00016211,2]
[403808862,1769548240788,-200.0,0.00016438,2]
[403808863,1769548240797,-864.0,0.00016594,2]
[403808864,1769548240806,-452.2694734,0.00016778,2]
[403808865,1769548240815,-2102.6378747,0.00016793,2]
[403808866,1769548240825,-398.79,0.00016964,2]
[403808867,1769548240834,-390.58682418,0.00017048,2]
[403808868,1769548240844,-726.00492028,0.00017244,2]
[403808869,1769548240853,-828.7413745,0.00017706,2]
[403808870,1769548240862,-176.6179849,0.00017706,2]
[403808871,1769548240871,-3490.5609662,0.00017825,2]
[403808872,1769548240880,-2061.049035,0.00017875,2]
[403808873,1769548240889,-181.68291298,0.00017962,2]
[403808874,1769548240898,-422.07880375,0.00017988,2]
[403808875,1769548240908,-167.21582835,0.00017988,2]
[403808876,1769548240917,-250.0,0.00017989,2]
[403808877,1769548240926,-160.1618543,0.00017989,2]
[403808878,1769548240936,-3614.62967936,0.00017989,2]
[403809163,1769548244712,-26385.37032064,0.00017989,2]
[403809166,1769548244722,-2674.60743027,0.00017989,2]
[403809168,1769548244731,-553.64373807,0.00017989,2]
[403809170,1769548244740,-2000.0,0.00017989,2]
[403809171,1769548244749,-242.75995683,0.00017989,2]
[403809174,1769548244759,-500.0,0.00017989,2]
[403809176,1769548244769,-500.0,0.00017989,2]
[403809177,1769548244779,-250.0,0.00017989,2]
[403809180,1769548244788,-500.0,0.00017989,2]
[403809181,1769548244799,-500.0,0.00017989,2]
[403809184,1769548244809,-500.0,0.00017989,2]
[403809185,1769548244819,-500.0,0.00017989,2]
[403809188,1769548244829,-500.0,0.00017989,2]
[403809189,1769548244839,-604.28,0.00017989,2]
[403809192,1769548244848,-201.93286099,0.00017989,2]
[403809194,1769548244857,-209.40437684,0.00017989,2]
[403809196,1769548244867,-217.15233878,0.00017989,2]
[403809198,1769548244877,-225.18697532,0.00017989,2]
[403809199,1769548244886,-233.51889341,0.00017989,2]
[403809201,1769548244896,-242.15909246,0.00017989,2]
[403809202,1769548244905,-251.11897888,0.00017989,2]
[403809204,1769548244915,-260.4103811,0.00017989,2]
[403809206,1769548244924,-270.0455652,0.00017989,2]
[403809208,1769548244934,-280.03725112,0.00017989,2]
[403809212,1769548244943,-290.39862941,0.00017989,2]
[403809215,1769548244952,-301.1433787,0.00017989,2]
[403809218,1769548244961,-151.0,0.00018,2]
[403809221,1769548244970,-1041.66666667,0.00018021,2]
[403809224,1769548244979,-1000.0,0.00018253,2]
[403809225,1769548244988,-729.0,0.000184,2]
[403809227,1769548244997,-1732.25,0.00018527,3]
[403809229,1769548245006,-866.12,0.00018527,3]
[403809231,1769548245015,-433.06,0.00018527,3]
[403809233,1769548245024,-433.06,0.00018527,3]
[403809235,1769548245034,-151.0,0.00018537,2]
[403809237,1769548245043,-529.543312,0.00018537,2]
[403809239,1769548245052,-529.543312,0.00018537,2]
[403809241,1769548245061,-529.543312,0.00018537,2]
[403809243,1769548245071,-529.543312,0.00018537,2]
[403809245,1769548245080,-31110.0,0.00018537,2]
[403809247,1769548245090,-2773.56790519,0.00018537,2]
[403809249,1769548245099,-574.12855637,0.00018537,2]